[Event "2026 European Womens Championship"]
[Site "Batumi, GE"]
[Date "2026.05.28"]
[Round "4"]
[White "Salimova, Nurgyul"]
[Black "Poliakova, Varvara"]
[Result "1-0"]
[Board "4"]
[TimeControl "5400+30"]
[WhiteFideId "2915138"]
[BlackFideId "13518313"]
[WhiteElo "2404"]
[BlackElo "2108"]
[WhiteTitle "IM"]
[BlackTitle "WFM"]
[WhiteClock "0:09:47"]
[BlackClock "0:13:03"]
[Variant "Standard"]

1. Nf3 {[%clk 1:30:20]}  d5 {[%clk 1:30:21]} 2. c4 {[%clk 1:30:40]}  d4 {[%clk 1:29:49]} 3. b4 {[%clk 1:29:52]}  g5 {[%clk 1:25:27]}
4. g3 {[%clk 1:29:19]}  g4 {[%clk 1:23:13]} 5. Nh4 {[%clk 1:29:03]}  e5 {[%clk 1:22:15]} 6. Bg2 {[%clk 1:28:03]}  Nf6 {[%clk 1:14:17]}
7. O-O {[%clk 1:15:08]}  a5 {[%clk 1:08:21]} 8. b5 {[%clk 1:10:48]}  Nbd7 {[%clk 1:06:03]} 9. d3 {[%clk 0:47:18]}  Nc5 {[%clk 1:03:45]}
10. Nd2 {[%clk 0:45:43]}  Be7 {[%clk 0:56:56]} 11. Ba3 {[%clk 0:42:48]}  O-O {[%clk 0:53:07]} 12. Nb3 {[%clk 0:37:03]}  Ne6 {[%clk 0:41:43]}
13. Bxe7 {[%clk 0:36:28]}  Qxe7 {[%clk 0:42:11]} 14. Qd2 {[%clk 0:35:27]}  Nh5 {[%clk 0:32:48]} 15. Nf5 {[%clk 0:24:08]}  Qf6 {[%clk 0:32:35]}
16. Qh6 {[%clk 0:24:11]}  Qxh6 {[%clk 0:13:17]} 17. Nxh6+ {[%clk 0:24:29]}  Kg7 {[%clk 0:10:30]} 18. Nxg4 {[%clk 0:23:35]}  a4 {[%clk 0:10:56]}
19. Nd2 {[%clk 0:23:21]}  Nef4 {[%clk 0:09:19]} 20. Nxe5 {[%clk 0:09:52]}  Nxe2+ {[%clk 0:09:43]} 21. Kh1 {[%clk 0:10:20]}  Re8 {[%clk 0:09:10]}
22. Rfe1 {[%clk 0:07:01]}  Rxe5 {[%clk 0:09:22]} 23. Bf3 {[%clk 0:07:23]}  Nexg3+ {[%clk 0:04:18]} 24. hxg3 {[%clk 0:07:34]}  Rxe1+ {[%clk 0:04:43]}
25. Rxe1 {[%clk 0:08:01]}  Nf6 {[%clk 0:05:05]} 26. Re7 {[%clk 0:06:08]}  c6 {[%clk 0:05:04]} 27. bxc6 {[%clk 0:05:51]}  bxc6 {[%clk 0:05:30]}
28. Bxc6 {[%clk 0:05:48]}  Rb8 {[%clk 0:04:06]} 29. Bb5 {[%clk 0:05:39]}  Bf5 {[%clk 0:03:51]} 30. Nf3 {[%clk 0:05:30]}  Bxd3 {[%clk 0:03:19]}
31. Nxd4 {[%clk 0:05:23]}  Kf8 {[%clk 0:02:58]} 32. Re3 {[%clk 0:01:34]}  Ng4 {[%clk 0:03:11]} 33. Re1 {[%clk 0:01:41]}  Nxf2+ {[%clk 0:03:28]}
34. Kg2 {[%clk 0:02:00]}  Ne4 {[%clk 0:03:29]} 35. Nc6 {[%clk 0:01:56]}  Rc8 {[%clk 0:02:58]} 36. Ne5 {[%clk 0:02:08]}  Nc5 {[%clk 0:02:30]}
37. Nxd3 {[%clk 0:02:19]}  Nxd3 {[%clk 0:02:59]} 38. Rh1 {[%clk 0:01:38]}  Nb4 {[%clk 0:02:05]} 39. Bxa4 {[%clk 0:01:22]}  Nxa2 {[%clk 0:01:37]}
40. Bb5 {[%clk 0:00:41]}  Nc3 {[%clk 0:01:51]} 41. Rxh7 {[%clk 0:00:35]}  Ke7 {[%clk 0:27:51]} 42. Rh5 {[%clk 0:29:27]}  Nxb5 {[%clk 0:24:16]}
43. cxb5 {[%clk 0:29:36]}  Rc2+ {[%clk 0:23:57]} 44. Kf3 {[%clk 0:29:19]}  Rc3+ {[%clk 0:23:45]} 45. Kf4 {[%clk 0:28:17]}  Rb3 {[%clk 0:21:32]}
46. Rc5 {[%clk 0:23:58]}  Kd6 {[%clk 0:17:55]} 47. Rc6+ {[%clk 0:23:50]}  Kd7 {[%clk 0:17:52]} 48. Rb6 {[%clk 0:23:03]}  Ke7 {[%clk 0:17:58]}
49. g4 {[%clk 0:22:39]}  Rb4+ {[%clk 0:15:01]} 50. Kf5 {[%clk 0:22:31]}  Kf8 {[%clk 0:13:58]} 51. Rb8+ {[%clk 0:14:40]}  Kg7 {[%clk 0:14:26]}
52. b6 {[%clk 0:11:31]}  Rb5+ {[%clk 0:14:09]} 53. Ke4 {[%clk 0:11:53]}  Rb4+ {[%clk 0:13:42]} 54. Kd5 {[%clk 0:11:44]}  Rxg4 {[%clk 0:14:01]}
55. Re8 {[%clk 0:10:52]}  Rb4 {[%clk 0:12:56]} 56. Kc6 {[%clk 0:10:48]}  f5 {[%clk 0:12:04]} 57. b7 {[%clk 0:10:52]}  Kf6 {[%clk 0:12:08]}
58. b8=Q {[%clk 0:09:42]}  Rxb8 {[%clk 0:12:36]} 59. Rxb8 {[%clk 0:10:07]}  Ke5 {[%clk 0:13:03]} 60. Kc5 {[%clk 0:09:47]} 1-0

[Event "2026 European Womens Championship"]
[Site "Batumi, GE"]
[Date "2026.05.28"]
[Round "4"]
[White "Toncheva, Nadya"]
[Black "Fataliyeva, Ulviyya"]
[Result "1/2-1/2"]
[Board "5"]
[TimeControl "5400+30"]
[WhiteFideId "2924056"]
[BlackFideId "13403052"]
[WhiteElo "2320"]
[BlackElo "2450"]
[WhiteTitle "WGM"]
[BlackTitle "IM"]
[WhiteClock "0:03:43"]
[BlackClock "0:07:25"]
[Variant "Standard"]

1. e4 {[%clk 1:30:56]}  d6 {[%clk 1:23:10]} 2. d4 {[%clk 1:31:09]}  Nf6 {[%clk 1:23:35]} 3. Nc3 {[%clk 1:31:12]}  e5 {[%clk 1:23:29]}
4. Nf3 {[%clk 1:31:21]}  Nbd7 {[%clk 1:23:55]} 5. Bc4 {[%clk 1:31:26]}  Be7 {[%clk 1:24:21]} 6. O-O {[%clk 1:31:23]}  O-O {[%clk 1:24:47]}
7. Re1 {[%clk 1:29:29]}  c6 {[%clk 1:24:49]} 8. a4 {[%clk 1:28:01]}  h6 {[%clk 1:24:50]} 9. h3 {[%clk 1:28:04]}  Re8 {[%clk 1:25:16]}
10. Be3 {[%clk 1:26:58]}  exd4 {[%clk 1:25:07]} 11. Qxd4 {[%clk 1:19:49]}  Bf8 {[%clk 1:23:13]} 12. Bf4 {[%clk 1:12:52]}  Nc5 {[%clk 1:17:30]}
13. Rad1 {[%clk 1:09:59]}  Be6 {[%clk 1:17:14]} 14. b4 {[%clk 1:00:24]}  Ncd7 {[%clk 0:54:01]} 15. Bxe6 {[%clk 0:51:17]}  Rxe6 {[%clk 0:54:24]}
16. Qc4 {[%clk 0:50:56]}  Nh5 {[%clk 0:52:00]} 17. Bh2 {[%clk 0:49:19]}  Qf6 {[%clk 0:50:23]} 18. Nd4 {[%clk 0:43:03]}  Ree8 {[%clk 0:49:46]}
19. Qe2 {[%clk 0:37:09]}  g6 {[%clk 0:45:51]} 20. Qd2 {[%clk 0:37:01]}  d5 {[%clk 0:33:53]} 21. g4 {[%clk 0:29:56]}  Ng7 {[%clk 0:30:40]}
22. exd5 {[%clk 0:27:03]}  Bxb4 {[%clk 0:23:53]} 23. dxc6 {[%clk 0:26:02]}  bxc6 {[%clk 0:22:13]} 24. Nd5 {[%clk 0:24:22]}  Rxe1+ {[%clk 0:18:12]}
25. Qxe1 {[%clk 0:24:46]}  cxd5 {[%clk 0:18:20]} 26. Qxb4 {[%clk 0:25:09]}  Rd8 {[%clk 0:07:46]} 27. Bc7 {[%clk 0:15:50]}  Re8 {[%clk 0:07:38]}
28. Qb5 {[%clk 0:15:20]}  Nf8 {[%clk 0:03:56]} 29. Qxd5 {[%clk 0:15:05]}  h5 {[%clk 0:03:54]} 30. Qf3 {[%clk 0:08:08]}  Qg5 {[%clk 0:02:28]}
31. Nb5 {[%clk 0:05:27]}  hxg4 {[%clk 0:01:21]} 32. hxg4 {[%clk 0:05:49]}  f5 {[%clk 0:01:13]} 33. Bf4 {[%clk 0:05:08]}  Qxg4+ {[%clk 0:00:39]}
34. Qxg4 {[%clk 0:05:33]}  fxg4 {[%clk 0:01:07]} 35. Be3 {[%clk 0:01:53]}  a5 {[%clk 0:01:21]} 36. Bb6 {[%clk 0:02:06]}  Nf5 {[%clk 0:01:01]}
37. Nd6 {[%clk 0:01:00]}  Re6 {[%clk 0:00:38]} 38. Bc7 {[%clk 0:00:57]}  Nxd6 {[%clk 0:00:43]} 39. Rxd6 {[%clk 0:01:10]}  Re4 {[%clk 0:00:44]}
40. Bxa5 {[%clk 0:00:48]}  Rxa4 {[%clk 0:01:12]} 41. Bd2 {[%clk 0:28:28]}  Rc4 {[%clk 0:28:46]} 42. c3 {[%clk 0:28:22]}  Kf7 {[%clk 0:28:58]}
43. Kf1 {[%clk 0:28:22]}  Ne6 {[%clk 0:28:08]} 44. Ke2 {[%clk 0:27:06]}  Nf4+ {[%clk 0:25:51]} 45. Ke3 {[%clk 0:21:23]}  g5 {[%clk 0:22:31]}
46. Rd4 {[%clk 0:21:27]}  Rc6 {[%clk 0:21:29]} 47. c4 {[%clk 0:18:05]}  Kf6 {[%clk 0:13:57]} 48. Bb4 {[%clk 0:12:57]}  Kf5 {[%clk 0:09:24]}
49. Bd6 {[%clk 0:13:15]}  Rb6 {[%clk 0:06:28]} 50. Rd2 {[%clk 0:10:35]}  Ng2+ {[%clk 0:02:55]} 51. Ke2 {[%clk 0:11:01]}  Nf4+ {[%clk 0:02:12]}
52. Kd1 {[%clk 0:09:19]}  Ra6 {[%clk 0:02:02]} 53. Kc1 {[%clk 0:06:58]}  Ke4 {[%clk 0:02:14]} 54. Be7 {[%clk 0:05:27]}  Nd3+ {[%clk 0:01:10]}
55. Kb1 {[%clk 0:05:51]}  Rb6+ {[%clk 0:00:57]} 56. Ka2 {[%clk 0:05:34]}  Kd4 {[%clk 0:00:56]} 57. c5 {[%clk 0:03:51]}  Re6 {[%clk 0:01:02]}
58. Bd8 {[%clk 0:01:29]}  Kc4 {[%clk 0:00:43]} 59. Rc2+ {[%clk 0:01:52]}  Kb5 {[%clk 0:00:59]} 60. Rd2 {[%clk 0:01:43]}  Nxc5 {[%clk 0:00:41]}
61. Bxg5 {[%clk 0:01:58]}  Ne4 {[%clk 0:00:41]} 62. Rd4 {[%clk 0:00:54]}  Nxf2 {[%clk 0:00:51]} 63. Bh4 {[%clk 0:01:09]}  Re2+ {[%clk 0:01:03]}
64. Kb3 {[%clk 0:01:20]}  Ne4 {[%clk 0:01:19]} 65. Rd5+ {[%clk 0:01:01]}  Kc6 {[%clk 0:01:10]} 66. Rd8 {[%clk 0:00:57]}  Rh2 {[%clk 0:01:03]}
67. Be1 {[%clk 0:01:08]}  Rh1 {[%clk 0:01:29]} 68. Bb4 {[%clk 0:00:48]}  g3 {[%clk 0:01:46]} 69. Rg8 {[%clk 0:00:55]}  Kd5 {[%clk 0:01:35]}
70. Kc2 {[%clk 0:01:08]}  Kc4 {[%clk 0:01:10]} 71. Bd6 {[%clk 0:01:08]}  Rh2+ {[%clk 0:01:14]} 72. Kc1 {[%clk 0:01:02]}  Nxd6 {[%clk 0:00:36]}
73. Rxg3 {[%clk 0:01:25]}  Nf5 {[%clk 0:00:57]} 74. Rg8 {[%clk 0:01:20]}  Nd4 {[%clk 0:01:01]} 75. Rc8+ {[%clk 0:01:41]}  Kd3 {[%clk 0:01:15]}
76. Rd8 {[%clk 0:02:00]}  Rg2 {[%clk 0:01:23]} 77. Rd7 {[%clk 0:02:16]}  Rg5 {[%clk 0:01:42]} 78. Rd8 {[%clk 0:02:02]}  Rc5+ {[%clk 0:01:29]}
79. Kd1 {[%clk 0:02:02]}  Rh5 {[%clk 0:01:19]} 80. Ke1 {[%clk 0:02:17]}  Rh2 {[%clk 0:01:36]} 81. Rd7 {[%clk 0:02:37]}  Ke3 {[%clk 0:01:21]}
82. Re7+ {[%clk 0:03:00]}  Kf4 {[%clk 0:01:47]} 83. Rf7+ {[%clk 0:03:25]}  Nf5 {[%clk 0:01:55]} 84. Rf8 {[%clk 0:03:47]}  Ke4 {[%clk 0:02:11]}
85. Re8+ {[%clk 0:04:09]}  Kd3 {[%clk 0:01:26]} 86. Rd8+ {[%clk 0:04:33]}  Nd4 {[%clk 0:01:50]} 87. Rd7 {[%clk 0:04:57]}  Rh8 {[%clk 0:02:07]}
88. Kf2 {[%clk 0:05:12]}  Rf8+ {[%clk 0:02:36]} 89. Kg3 {[%clk 0:05:05]}  Rf6 {[%clk 0:02:53]} 90. Rd8 {[%clk 0:04:35]}  Ke3 {[%clk 0:03:13]}
91. Re8+ {[%clk 0:04:52]}  Ne6 {[%clk 0:03:42]} 92. Kg4 {[%clk 0:04:54]}  Ke4 {[%clk 0:03:46]} 93. Kg3 {[%clk 0:05:17]}  Rg6+ {[%clk 0:03:41]}
94. Kf2 {[%clk 0:05:41]}  Kf4 {[%clk 0:04:06]} 95. Ra8 {[%clk 0:05:49]}  Rf6 {[%clk 0:03:24]} 96. Ra4+ {[%clk 0:05:41]}  Ke5+ {[%clk 0:03:50]}
97. Ke3 {[%clk 0:06:05]}  Nc5 {[%clk 0:04:03]} 98. Ra5 {[%clk 0:06:20]}  Kd5 {[%clk 0:04:30]} 99. Ra8 {[%clk 0:06:32]}  Re6+ {[%clk 0:04:49]}
100. Kf3 {[%clk 0:06:42]}  Rd6 {[%clk 0:04:30]} 101. Kf4 {[%clk 0:06:15]}  Kd4 {[%clk 0:04:50]} 102. Kf5 {[%clk 0:06:00]}  Rd5+ {[%clk 0:05:15]}
103. Kg4 {[%clk 0:06:00]}  Ke3 {[%clk 0:05:33]} 104. Ra3+ {[%clk 0:05:43]}  Nd3 {[%clk 0:06:01]} 105. Rc3 {[%clk 0:04:48]}  Ra5 {[%clk 0:06:30]}
106. Rb3 {[%clk 0:04:00]}  Ke4 {[%clk 0:06:58]} 107. Rb8 {[%clk 0:03:50]}  Ne5 {[%clk 0:07:26]} 108. Kg3 {[%clk 0:04:10]}  Ra3+ {[%clk 0:07:53]}
109. Kg2 {[%clk 0:03:47]}  Ng6 {[%clk 0:07:52]} 110. Kf2 {[%clk 0:03:33]}  Rf3+ {[%clk 0:08:17]} 111. Ke1 {[%clk 0:03:26]}  Rh3 {[%clk 0:07:32]}
112. Rb4+ {[%clk 0:03:43]}  Ke5 {[%clk 0:07:25]} 1/2-1/2

[Event "2026 European Womens Championship"]
[Site "Batumi, GE"]
[Date "2026.05.28"]
[Round "4"]
[White "Zimina, Olga"]
[Black "Wagner, Dinara"]
[Result "1/2-1/2"]
[Board "6"]
[TimeControl "5400+30"]
[WhiteFideId "4132190"]
[BlackFideId "24157570"]
[WhiteElo "2290"]
[BlackElo "2408"]
[WhiteTitle "IM"]
[BlackTitle "IM"]
[WhiteClock "0:08:18"]
[BlackClock "0:02:30"]
[Variant "Standard"]

1. Nf3 {[%clk 1:30:53]}  d5 {[%clk 1:30:49]} 2. d4 {[%clk 1:31:16]}  Nf6 {[%clk 1:31:13]} 3. g3 {[%clk 1:31:40]}  e6 {[%clk 1:31:32]}
4. Bg2 {[%clk 1:31:56]}  Be7 {[%clk 1:31:59]} 5. O-O {[%clk 1:29:45]}  O-O {[%clk 1:32:22]} 6. c4 {[%clk 1:29:24]}  dxc4 {[%clk 1:32:36]}
7. Qc2 {[%clk 1:29:45]}  a6 {[%clk 1:32:59]} 8. a4 {[%clk 1:30:03]}  b6 {[%clk 1:33:21]} 9. Nbd2 {[%clk 1:14:43]}  Bb7 {[%clk 1:31:32]}
10. Nxc4 {[%clk 1:15:04]}  Be4 {[%clk 1:27:42]} 11. Qb3 {[%clk 1:08:42]}  Nc6 {[%clk 1:23:32]} 12. Be3 {[%clk 1:04:22]}  Nb4 {[%clk 0:53:49]}
13. Rac1 {[%clk 0:44:52]}  b5 {[%clk 0:53:24]} 14. Nce5 {[%clk 0:44:50]}  Bd5 {[%clk 0:49:58]} 15. Qd1 {[%clk 0:43:23]}  c6 {[%clk 0:47:43]}
16. Ne1 {[%clk 0:39:34]}  Qb6 {[%clk 0:39:54]} 17. N1d3 {[%clk 0:37:33]}  Nxd3 {[%clk 0:38:00]} 18. Qxd3 {[%clk 0:36:24]}  Rfc8 {[%clk 0:37:37]}
19. a5 {[%clk 0:33:54]}  Qb7 {[%clk 0:21:08]} 20. f3 {[%clk 0:33:25]}  Nd7 {[%clk 0:20:12]} 21. Nxd7 {[%clk 0:29:49]}  Qxd7 {[%clk 0:20:39]}
22. Bf2 {[%clk 0:28:31]}  Bb4 {[%clk 0:13:33]} 23. b3 {[%clk 0:14:11]}  c5 {[%clk 0:10:51]} 24. dxc5 {[%clk 0:13:51]}  Qe7 {[%clk 0:09:19]}
25. f4 {[%clk 0:08:00]}  Bxg2 {[%clk 0:05:56]} 26. Kxg2 {[%clk 0:08:25]}  Bxc5 {[%clk 0:06:25]} 27. Qc3 {[%clk 0:07:07]}  Qb7+ {[%clk 0:05:40]}
28. Qf3 {[%clk 0:07:30]}  Qxf3+ {[%clk 0:06:00]} 29. Kxf3 {[%clk 0:07:38]}  Bxf2 {[%clk 0:02:01]} 30. Kxf2 {[%clk 0:08:01]}  Kf8 {[%clk 0:02:30]}
31. Ke3 {[%clk 0:08:18]} 1/2-1/2

[Event "2026 European Womens Championship"]
[Site "Batumi, GE"]
[Date "2026.05.28"]
[Round "4"]
[White "Safarli, Josefine"]
[Black "Roebers, Eline"]
[Result "1/2-1/2"]
[Board "7"]
[TimeControl "5400+30"]
[WhiteFideId "12900460"]
[BlackFideId "1058401"]
[WhiteElo "2253"]
[BlackElo "2389"]
[WhiteTitle "WGM"]
[BlackTitle "IM"]
[WhiteClock "0:25:52"]
[BlackClock "0:20:37"]
[Variant "Standard"]

1. e4 {[%clk 1:30:57]}  e6 {[%clk 1:29:58]} 2. d4 {[%clk 1:31:24]}  d5 {[%clk 1:30:25]} 3. Nc3 {[%clk 1:31:46]}  Nf6 {[%clk 1:30:30]}
4. e5 {[%clk 1:31:55]}  Nfd7 {[%clk 1:30:56]} 5. f4 {[%clk 1:32:21]}  c5 {[%clk 1:31:23]} 6. Nf3 {[%clk 1:32:46]}  Nc6 {[%clk 1:31:50]}
7. Be3 {[%clk 1:33:05]}  Qb6 {[%clk 1:31:57]} 8. Na4 {[%clk 1:32:25]}  Qa5+ {[%clk 1:30:08]} 9. c3 {[%clk 1:32:47]}  b6 {[%clk 1:30:35]}
10. Be2 {[%clk 1:25:27]}  Ba6 {[%clk 1:26:34]} 11. Bxa6 {[%clk 1:23:33]}  Qxa6 {[%clk 1:26:58]} 12. Kf2 {[%clk 1:23:45]}  Be7 {[%clk 1:22:49]}
13. Rf1 {[%clk 1:22:27]}  O-O {[%clk 1:18:32]} 14. b3 {[%clk 1:15:47]}  Rac8 {[%clk 1:16:08]} 15. Kg1 {[%clk 1:11:05]}  cxd4 {[%clk 1:13:05]}
16. Nxd4 {[%clk 1:09:00]}  b5 {[%clk 1:04:57]} 17. Nb2 {[%clk 1:04:26]}  Nc5 {[%clk 0:50:17]} 18. a4 {[%clk 0:57:40]}  Nxd4 {[%clk 0:47:58]}
19. Bxd4 {[%clk 0:54:44]}  Ne4 {[%clk 0:40:39]} 20. Qd3 {[%clk 0:50:52]}  Bc5 {[%clk 0:32:47]} 21. axb5 {[%clk 0:44:41]}  Bxd4+ {[%clk 0:28:29]}
22. cxd4 {[%clk 0:45:06]}  Qb7 {[%clk 0:23:35]} 23. Na4 {[%clk 0:40:04]}  Rb8 {[%clk 0:22:06]} 24. Nc5 {[%clk 0:32:50]}  Qxb5 {[%clk 0:19:21]}
25. Qxb5 {[%clk 0:32:58]}  Rxb5 {[%clk 0:19:48]} 26. Nxe4 {[%clk 0:27:44]}  dxe4 {[%clk 0:20:02]} 27. Rxa7 {[%clk 0:27:14]}  Rxb3 {[%clk 0:20:07]}
28. Re1 {[%clk 0:27:36]}  e3 {[%clk 0:19:45]} 29. g3 {[%clk 0:27:54]}  Rd8 {[%clk 0:19:20]} 30. Ra2 {[%clk 0:24:34]}  Rd3 {[%clk 0:19:35]}
31. Rae2 {[%clk 0:24:59]}  R8xd4 {[%clk 0:19:59]} 32. Rxe3 {[%clk 0:25:24]}  Rxe3 {[%clk 0:20:25]} 33. Rxe3 {[%clk 0:25:52]}  Rd2 {[%clk 0:20:37]} 1/2-1/2

[Event "2026 European Womens Championship"]
[Site "Batumi, GE"]
[Date "2026.05.28"]
[Round "4"]
[White "Mammadzada, Gunay"]
[Black "Antova, Gabriela"]
[Result "1-0"]
[Board "8"]
[TimeControl "5400+30"]
[WhiteFideId "13403729"]
[BlackFideId "2915235"]
[WhiteElo "2374"]
[BlackElo "2203"]
[WhiteTitle "IM"]
[BlackTitle "WGM"]
[WhiteClock "0:07:59"]
[BlackClock "0:27:22"]
[Variant "Standard"]

1. e4 {[%clk 1:30:55]}  e5 {[%clk 1:30:44]} 2. Nf3 {[%clk 1:31:13]}  Nc6 {[%clk 1:31:05]} 3. Bb5 {[%clk 1:31:38]}  a6 {[%clk 1:31:23]}
4. Ba4 {[%clk 1:32:03]}  Nge7 {[%clk 1:31:20]} 5. c3 {[%clk 1:31:39]}  f6 {[%clk 1:31:29]} 6. d4 {[%clk 1:29:51]}  d5 {[%clk 1:31:21]}
7. dxe5 {[%clk 1:20:01]}  dxe4 {[%clk 1:31:02]} 8. Nd4 {[%clk 1:18:04]}  b5 {[%clk 1:30:13]} 9. exf6 {[%clk 1:16:15]}  Nxd4 {[%clk 1:30:04]}
10. fxe7 {[%clk 1:06:51]}  Bxe7 {[%clk 1:28:44]} 11. cxd4 {[%clk 1:04:38]}  bxa4 {[%clk 1:28:58]} 12. Qxa4+ {[%clk 0:59:43]}  Bd7 {[%clk 1:23:32]}
13. Qc4 {[%clk 0:48:28]}  Bb5 {[%clk 1:22:04]} 14. Qe6 {[%clk 0:48:37]}  Qxd4 {[%clk 1:08:09]} 15. Bg5 {[%clk 0:47:18]}  Qd6 {[%clk 1:07:41]}
16. Qxe7+ {[%clk 0:46:12]}  Qxe7 {[%clk 1:08:03]} 17. Bxe7 {[%clk 0:46:36]}  Kxe7 {[%clk 1:08:28]} 18. Nc3 {[%clk 0:46:45]}  Rad8 {[%clk 0:51:41]}
19. Nxe4 {[%clk 0:29:29]}  Bc6 {[%clk 0:51:46]} 20. Nc3 {[%clk 0:23:36]}  Bxg2 {[%clk 0:50:58]} 21. Rg1 {[%clk 0:22:43]}  Bh3 {[%clk 0:49:34]}
22. Rxg7+ {[%clk 0:17:29]}  Kf6 {[%clk 0:49:49]} 23. Rg3 {[%clk 0:17:53]}  Rhe8+ {[%clk 0:48:34]} 24. Ne2 {[%clk 0:17:21]}  Bf5 {[%clk 0:31:00]}
25. Rc1 {[%clk 0:15:10]}  Bd3 {[%clk 0:29:01]} 26. Rc6+ {[%clk 0:13:00]}  Kf5 {[%clk 0:28:50]} 27. Rc5+ {[%clk 0:11:56]}  Kf6 {[%clk 0:29:00]}
28. Rf3+ {[%clk 0:11:17]}  Ke6 {[%clk 0:20:43]} 29. b4 {[%clk 0:04:58]}  Bb5 {[%clk 0:19:55]} 30. Re3+ {[%clk 0:04:41]}  Kd6 {[%clk 0:19:55]}
31. Nd4 {[%clk 0:03:07]}  Rxe3+ {[%clk 0:18:01]} 32. fxe3 {[%clk 0:03:36]}  Rg8 {[%clk 0:17:40]} 33. Kf2 {[%clk 0:03:02]}  Bd3 {[%clk 0:16:17]}
34. Nf5+ {[%clk 0:00:44]}  Ke6 {[%clk 0:16:14]} 35. Ng3 {[%clk 0:00:50]}  Kd6 {[%clk 0:15:33]} 36. e4 {[%clk 0:01:06]}  Bb5 {[%clk 0:14:18]}
37. Ke3 {[%clk 0:00:46]}  Rf8 {[%clk 0:14:06]} 38. Nf5+ {[%clk 0:00:55]}  Kd7 {[%clk 0:14:23]} 39. Ng3 {[%clk 0:00:36]}  c6 {[%clk 0:12:59]}
40. Rh5 {[%clk 0:00:47]}  a5 {[%clk 0:12:59]} 41. Rxh7+ {[%clk 0:00:44]}  Ke6 {[%clk 0:13:16]} 42. Rh6+ {[%clk 0:26:08]}  Kd7 {[%clk 0:37:49]}
43. a3 {[%clk 0:18:03]}  axb4 {[%clk 0:29:34]} 44. axb4 {[%clk 0:18:29]}  Ra8 {[%clk 0:29:59]} 45. e5 {[%clk 0:12:12]}  Bc4 {[%clk 0:28:59]}
46. Ne4 {[%clk 0:11:15]}  Ra1 {[%clk 0:27:22]} 47. Kd4 {[%clk 0:07:59]} 1-0

[Event "2026 European Womens Championship"]
[Site "Batumi, GE"]
[Date "2026.05.28"]
[Round "4"]
[White "Charkhalashvili, Inga"]
[Black "Bivol, Alina"]
[Result "1/2-1/2"]
[Board "9"]
[TimeControl "5400+30"]
[WhiteFideId "13601431"]
[BlackFideId "4100123"]
[WhiteElo "2235"]
[BlackElo "2361"]
[WhiteTitle "WGM"]
[BlackTitle "IM"]
[WhiteClock "0:05:09"]
[BlackClock "0:08:41"]
[Variant "Standard"]

1. d4 {[%clk 1:30:56]}  Nf6 {[%clk 1:30:42]} 2. Nf3 {[%clk 1:31:20]}  e6 {[%clk 1:28:47]} 3. g3 {[%clk 1:29:52]}  d5 {[%clk 1:27:27]}
4. Bg2 {[%clk 1:30:09]}  Be7 {[%clk 1:27:14]} 5. c4 {[%clk 1:27:53]}  O-O {[%clk 1:27:03]} 6. O-O {[%clk 1:26:52]}  a5 {[%clk 1:27:27]}
7. Nc3 {[%clk 1:26:40]}  c6 {[%clk 1:19:28]} 8. b3 {[%clk 1:21:24]}  a4 {[%clk 1:13:41]} 9. cxd5 {[%clk 1:13:28]}  axb3 {[%clk 1:08:35]}
10. dxc6 {[%clk 1:10:52]}  bxa2 {[%clk 1:03:02]} 11. cxb7 {[%clk 1:03:31]}  Bxb7 {[%clk 1:03:02]} 12. Rxa2 {[%clk 0:56:34]}  Rxa2 {[%clk 0:57:43]}
13. Nxa2 {[%clk 0:57:01]}  Qa5 {[%clk 0:55:43]} 14. Qd2 {[%clk 0:56:51]}  Qb6 {[%clk 0:55:21]} 15. Qb2 {[%clk 0:56:08]}  Qa7 {[%clk 0:52:50]}
16. Nb4 {[%clk 0:53:35]}  Nbd7 {[%clk 0:51:51]} 17. Bf4 {[%clk 0:51:44]}  Ra8 {[%clk 0:41:12]} 18. Nd3 {[%clk 0:43:46]}  h6 {[%clk 0:36:32]}
19. Nfe5 {[%clk 0:38:48]}  Bxg2 {[%clk 0:35:57]} 20. Kxg2 {[%clk 0:39:14]}  Ba3 {[%clk 0:32:43]} 21. Qc3 {[%clk 0:37:43]}  Nxe5 {[%clk 0:27:04]}
22. Nxe5 {[%clk 0:35:20]}  Bf8 {[%clk 0:19:21]} 23. Qc6 {[%clk 0:30:03]}  Rd8 {[%clk 0:17:34]} 24. Nf3 {[%clk 0:29:24]}  Nd5 {[%clk 0:15:46]}
25. Bd2 {[%clk 0:28:44]}  Ne7 {[%clk 0:15:44]} 26. Qc4 {[%clk 0:25:34]}  Qb7 {[%clk 0:15:26]} 27. Ba5 {[%clk 0:21:30]}  Ra8 {[%clk 0:13:41]}
28. Bd2 {[%clk 0:20:02]}  Nf5 {[%clk 0:13:46]} 29. Rc1 {[%clk 0:18:35]}  Rd8 {[%clk 0:12:21]} 30. Kg1 {[%clk 0:14:28]}  Be7 {[%clk 0:10:23]}
31. Qd3 {[%clk 0:10:12]}  Bf6 {[%clk 0:10:10]} 32. Ba5 {[%clk 0:08:57]}  Rd7 {[%clk 0:07:47]} 33. Rb1 {[%clk 0:08:38]}  Qc8 {[%clk 0:05:38]}
34. Bb6 {[%clk 0:08:03]}  Nd6 {[%clk 0:03:48]} 35. Bc5 {[%clk 0:07:22]}  g6 {[%clk 0:02:49]} 36. Bxd6 {[%clk 0:07:13]}  Rxd6 {[%clk 0:03:18]}
37. Qe4 {[%clk 0:06:23]}  Rd5 {[%clk 0:01:37]} 38. Qf4 {[%clk 0:05:25]}  Kg7 {[%clk 0:02:04]} 39. e4 {[%clk 0:04:13]}  Ra5 {[%clk 0:02:06]}
40. Rc1 {[%clk 0:01:52]}  Qa6 {[%clk 0:02:12]} 41. Kg2 {[%clk 0:01:00]}  Ra2 {[%clk 0:00:58]} 42. e5 {[%clk 0:24:27]}  Bd8 {[%clk 0:30:41]}
43. Re1 {[%clk 0:20:14]}  Qb7 {[%clk 0:27:18]} 44. Qe4 {[%clk 0:18:51]}  Qb2 {[%clk 0:22:55]} 45. Rf1 {[%clk 0:19:15]}  Ba5 {[%clk 0:19:54]}
46. h4 {[%clk 0:15:24]}  h5 {[%clk 0:18:09]} 47. Ng5 {[%clk 0:14:23]}  Bd8 {[%clk 0:17:47]} 48. Nf3 {[%clk 0:13:16]}  Be7 {[%clk 0:17:59]}
49. Qb1 {[%clk 0:11:31]}  Qa3 {[%clk 0:17:55]} 50. Qb7 {[%clk 0:11:11]}  Re2 {[%clk 0:16:49]} 51. d5 {[%clk 0:08:51]}  exd5 {[%clk 0:16:49]}
52. Qxd5 {[%clk 0:09:10]}  Qc5 {[%clk 0:15:49]} 53. Qd3 {[%clk 0:07:51]}  Ra2 {[%clk 0:16:05]} 54. Qd7 {[%clk 0:06:36]}  Re2 {[%clk 0:12:12]}
55. Qd3 {[%clk 0:06:32]}  Rb2 {[%clk 0:10:29]} 56. Qd4 {[%clk 0:05:47]}  Qxd4 {[%clk 0:10:07]} 57. Nxd4 {[%clk 0:06:15]}  Bc5 {[%clk 0:10:07]}
58. Rd1 {[%clk 0:05:48]}  Kf8 {[%clk 0:09:48]} 59. Kf3 {[%clk 0:04:53]}  Ra2 {[%clk 0:09:06]} 60. Rd3 {[%clk 0:04:42]}  Bxd4 {[%clk 0:08:29]}
61. Rxd4 {[%clk 0:05:09]}  Ke7 {[%clk 0:08:41]} 62. Ke4 {[%clk 0:04:09]} 1/2-1/2